[Event "Slovakian ECo-C Extraliga 2024-25"]
[Site "Slovakia"]
[Date "2024.11.23"]
[Round "1.3"]
[White "Kriebel, Tadeas"]
[Black "Ongut, Tamas Gunes"]
[Result "1-0"]
[ECO "C43"]
[WhiteElo "2512"]
[BlackElo "2215"]
[Annotator "TA"]
[PlyCount "159"]
[EventDate "2024.09.12"]
[EventType "team-tourn"]
[EventCountry "SVK"]
[SourceTitle "playchess.com"]
[Source "ChessBase"]
[SourceQuality "1"]
[TimeControl "5400+30"]

{[%evp 46,159,0,0,0,0,0,0,0,0,0,0,0,0,0,0,0,0,0,0,8,8,8,8,16,6,5,3,33,10,24,25,29,26,31,26,41,37,52,16,67,45,55,12,52,28,78,78,87,80,188,148,227,225,539,156,5181,264,5065,285,331,331,306,292,298,94,121,118,118,118,653,0,0,0,0,0,28,28,28,8,8,0,0,0,0,0,0,0,0,0,253,0,0,0,0,0,143,172,29959,29962,29958,29957,29967,29967,29968,29968,29968,29966,29967,29968,29968,29969,29968,29969,29970,29970]} 1. e4 {[%emt 0:00:08]} e5 {[%emt 0:00:20]} 2. Nf3 {[%emt 0:00:06]} Nf6 {[%emt 0:00:29]} 3. d4 {[%emt 0:01:17]} Nxe4 {[%emt 0:00:12]} 4. Bd3 {[%emt 0:00:07]} d5 {[%emt 0:00:14]} 5. Nxe5 {[%emt 0:00:05]} Bd6 {[%emt 0:00:08]} 6. O-O {[%emt 0:03:00]} O-O {[%emt 0:00:09]} 7. Nd2 {[%emt 0:01:58]} Nxd2 {[%emt 0:33:07]} 8. Bxd2 {[%emt 0:00:06]} Nd7 {[%emt 0:02:34]} 9. Nxd7 {[%emt 0:03:17] C43: Petroff Defence: 3 d4.} Bxd7 {[%emt 0:01:12]} 10. Qh5 {[%emt 0:07:16]} f5 {[%emt 0:01:48]} 11. Qf3 {[%emt 0:03:01]} c6 {[%emt 0:04:50]} 12. Bf4 {[%emt 0:00:07]} Qc7 {[%emt 0:03:49]} 13. Bxd6 {[%emt 0:00:15]} Qxd6 {[%emt 0:00:08]} 14. c3 {[%emt 0:00:50]} Rae8 {[%emt 0:01:55]} 15. Rfe1 {[%emt 0:00:07]} Qh6 $146 {[%emt 0:02:24]} ({Predecessor:} 15... Re7 16. h3 Rfe8 17. Re3 Rxe3 18. fxe3 g6 19. Qf4 Qe7 20. Re1 Kg7 21. h4 h6 {½-½ Song,G (2145)-Kosakowski,J (2442) Titled Tuesday intern op 08th Feb Late blitz 2022 (5)}) 16. Rad1 {[%emt 0:02:27]} f4 {[%emt 0:04:54]} 17. h3 {[%emt 0:06:55]} Qg5 {[%emt 0:01:21]} 18. c4 {[%emt 0:01:40]} Bf5 {[%emt 0:08:40]} 19. Bxf5 {[%emt 0:00:22]} Qxf5 {[%emt 0:00:43]} 20. cxd5 {[%emt 0:00:07]} Qxd5 {[%emt 0:04:05]} 21. Qxd5+ {[%emt 0:00:46]} cxd5 {[%emt 0:00:08]} 22. Kf1 {[%emt 0:01:31]} Kf7 {[%emt 0:01:50]} 23. Rc1 {[%emt 0:02:30]} Rxe1+ {[%emt 0:05:17]} 24. Kxe1 {[%emt 0:00:09]} Ke6 {[%emt 0:04:07]} 25. Rc7 {[%emt 0:03:13]} Rf7 $1 {[%emt 0:00:09]} 26. Rc8 {[%emt 0:00:12]} f3 {[%emt 0:05:41]} 27. g3 {[%emt 0:02:15]} Kd7 {[%emt 0:05:27]} 28. Rc3 {[%emt 0:00:19]} Re7+ {[%emt 0:04:33]} 29. Re3 {[%emt 0:09:05]} Re4 $1 {[%emt 0:00:10]} 30. Kd2 {[%emt 0:00:11]} Rxd4+ {[%emt 0:00:09]} 31. Kc3 {[%emt 0:00:18]} Rc4+ {[%emt 0:01:58]} 32. Kd3 {[%emt 0:00:11]} Kd6 {[%emt 0:02:10]} 33. Rxf3 {[%emt 0:00:09]} Rc7 {[%emt 0:00:09]} 34. Rf8 {[%emt 0:00:21]} Re7 {[%emt 0:01:39]} 35. Rd8+ {[%emt 0:00:26]} Kc6 {[%emt 0:00:37]} 36. Rh8 {[%emt 0:02:45]} h6 {[%emt 0:00:35]} 37. Rg8 {[%emt 0:01:54]} Rf7 {[%emt 0:00:18]} 38. f4 {[%emt 0:00:26]} Re7 {[%emt 0:00:25]} 39. g4 {[%emt 0:01:09]} Kd6 {[%emt 0:00:54]} 40. Rd8+ {[%emt 0:00:00]} Kc6 {[%emt 0:00:00]} 41. Rf8 {[%emt 0:00:00]} Kd6 {[%emt 0:00:00]} 42. h4 {[%emt 0:00:00]} Rc7 {[%emt 0:00:00]} ({Black should play} 42... a5 $11) 43. b3 {[%emt 0:01:47]} Re7 {[%emt 0:00:00]} 44. h5 {[%emt 0:01:36]} Kc6 {[%emt 0:00:00]} 45. Rf5 {[%emt 0:06:12]} Kd6 {[%emt 0:00:00]} (45... a5 $1 $11) 46. g5 {[%emt 0:00:20]} hxg5 {[%emt 0:00:00]} 47. fxg5 {[%emt 0:00:36]} Ke6 {[%emt 0:00:00]} (47... Re1 $16) 48. Rf8 {[%emt 0:00:40]} Rc7 {[%emt 0:00:00]} (48... Ke5 $16 {keeps fighting.} 49. Rf2 Kd6) 49. g6 $1 $18 {[%emt 0:01:06]} Kd6 $2 {[%emt 0:00:00] [#]} (49... Re7 {is tougher.} 50. Ra8 a6) 50. Kd4 $2 {[%emt 0:01:57]} (50. Rf6+ $1 $18 gxf6 51. h6) 50... Rd7 $2 {[%emt 0:00:00]} (50... Ke6 $16 51. a4 b6) 51. Re8 $2 {[%emt 0:02:49]} (51. h6 {h7 would kill now.} Re7 52. h7 Re4+ 53. Kd3) 51... Re7 $2 {[%emt 0:00:00]} (51... Rc7 52. a3 b6) 52. Rd8+ $2 {[%emt 0:00:59]} (52. Rxe7 {Threatening mate with h6.} Kxe7 53. Kxd5) 52... Ke6 $18 {[%emt 0:00:00]} 53. Rxd5 {[%emt 0:01:01]} Kf6 {[%emt 0:00:00]} 54. a4 {[%emt 0:01:15]} Re1 {[%emt 0:00:00]} 55. Kc5 $2 {[%emt 0:00:48]} (55. Kc4 $18 {and White stays clearly on top.}) 55... Ke6 $16 {[%emt 0:00:00]} 56. Rd6+ {[%emt 0:02:49]} Ke7 {[%emt 0:00:09]} 57. Rd4 {[%emt 0:04:59]} Re5+ $2 {[%emt 0:01:02][%mdl 8192]} (57... Rh1 $16) 58. Kc4 $2 {[%emt 0:00:15]} ({White has to play} 58. Rd5 $18 Rxd5+ 59. Kxd5) 58... Rxh5 $11 {[%emt 0:04:02]} 59. Rf4 {[%emt 0:00:03]} Kd6 {[%emt 0:00:10]} 60. Rf7 {[%emt 0:00:05]} Rh4+ {[%emt 0:00:28]} 61. Kc3 {[%emt 0:02:28]} Rh3+ {[%emt 0:00:10]} 62. Kb2 {[%emt 0:00:15]} Rh2+ {[%emt 0:00:19]} 63. Ka3 {[%emt 0:00:04]} Kc6 $1 {[%emt 0:00:31]} 64. a5 {[%emt 0:06:28]} Rg2 {[%emt 0:00:14]} 65. Rxg7 {[%emt 0:00:11]} a6 {[%emt 0:01:47]} 66. b4 {[%emt 0:09:22]} (66. Rg8 $5) 66... Rg3+ {[%emt 0:00:20]} 67. Kb2 {[%emt 0:00:04]} b6 $2 {[%emt 0:02:05][%mdl 8192] [#]} (67... Rg4 $11) 68. axb6 $2 {[%emt 0:03:25]} ({White must play} 68. Rg8 $1 $18) 68... Kxb6 $11 {[%emt 0:00:10]} 69. Rg8 {[%emt 0:00:12]} Kb7 {[%emt 0:00:45]} 70. Kc2 {[%emt 0:00:16]} Ka7 {[%emt 0:01:00]} (70... Rg1 $11 {remains equal.}) 71. Kd2 $16 {[%emt 0:00:52]} Rb3 $2 {[%emt 0:00:11]} (71... Rg4 $18) 72. Rf8 {[%emt 0:00:40]} Rg3 {[%emt 0:00:57]} 73. Rf6 {[%emt 0:00:31]} Rg4 {[%emt 0:00:27]} 74. Ke3 {[%emt 0:06:25]} Rxb4 {[%emt 0:00:11]} 75. Kf3 {[%emt 0:00:04]} Rb1 {[%emt 0:01:03]} 76. Kg2 {[%emt 0:02:29]} Rb5 {[%emt 0:00:46]} 77. Kh3 {[%emt 0:01:24]} Rg5 {[%emt 0:00:16]} 78. Kh4 {[%emt 0:00:13]} Rg1 {[%emt 0:00:08]} 79. Kh5 {[%emt 0:00:02]} Rh1+ {[%emt 0:00:20]} 80. Kg5 {[%emt 0:00:04]} 1-0

[Event "Slovakian ECo-C Extraliga 2024-25"]
[Site "Slovakia"]
[Date "2024.11.23"]
[Round "1.3"]
[White "Babula, Vlastimil"]
[Black "Stachowiak, Kamil"]
[Result "1-0"]
[ECO "B42"]
[WhiteElo "2496"]
[BlackElo "2417"]
[Annotator "RC"]
[PlyCount "111"]
[EventDate "2024.09.12"]
[EventType "team-tourn"]
[EventCountry "SVK"]
[SourceTitle "playchess.com"]
[Source "ChessBase"]
[SourceQuality "1"]
[TimeControl "5400+30"]

1. e4 {[%emt 0:00:03]} c5 {[%emt 0:00:08]} 2. Nf3 {[%emt 0:00:11]} e6 {[%emt 0:00:07]} 3. d4 {[%emt 0:00:08]} cxd4 {[%emt 0:00:09]} 4. Nxd4 {[%emt 0:00:05]} a6 {[%emt 0:00:14]} 5. Bd3 {[%emt 0:00:07]} Nf6 {[%emt 0:00:36]} 6. O-O {[%emt 0:02:08]} Qc7 {[%emt 0:00:35]} 7. c4 {[%emt 0:03:57]} Nc6 {[%emt 0:00:22]} 8. Nxc6 {[%emt 0:03:56]} dxc6 {[%emt 0:00:40]} 9. Nc3 {[%emt 0:03:47]} e5 {[%emt 0:01:35]} 10. Kh1 {[%emt 0:00:52]} Be6 {[%emt 0:04:42]} 11. Qe2 {[%emt 0:01:51]} Bd6 {[%emt 0:20:12]} 12. a3 {[%emt 0:10:22]} Bc5 {[%emt 0:08:03]} 13. f4 {[%emt 0:02:41]} Rd8 {[%emt 0:00:30]} 14. f5 {[%emt 0:03:52]} Bc8 {[%emt 0:00:29]} 15. Bg5 {[%emt 0:01:43]} h5 {[%emt 0:02:43]} 16. b4 {[%emt 0:03:39]} Bd4 {[%emt 0:00:49]} 17. Rac1 {[%emt 0:00:07]} b6 {[%emt 0:22:56]} 18. c5 {[%emt 0:11:39]} b5 {[%emt 0:01:18]} 19. Qf3 {[%emt 0:02:50]} a5 {[%emt 0:03:38]} 20. Bb1 {[%emt 0:02:05]} axb4 {[%emt 0:02:03]} 21. axb4 {[%emt 0:00:01]} Bxc3 {[%emt 0:06:07]} 22. Qxc3 {[%emt 0:01:55]} h4 {[%emt 0:02:28]} 23. Rcd1 {[%emt 0:04:42]} Rxd1 {[%emt 0:05:26]} 24. Rxd1 {[%emt 0:00:02]} Rh5 {[%emt 0:01:14]} 25. Bc1 {[%emt 0:02:11]} h3 {[%emt 0:00:55]} 26. gxh3 {[%emt 0:01:42]} Qe7 {[%emt 0:01:35]} 27. Qg3 {[%emt 0:03:40]} Nd7 {[%emt 0:08:30]} 28. Qxg7 {[%emt 0:03:59]} Qh4 {[%emt 0:01:48]} 29. Qg8+ {[%emt 0:06:31]} Nf8 {[%emt 0:00:09]} 30. Qg1 {[%emt 0:01:49]} Qxh3 {[%emt 0:01:02]} 31. Rd3 {[%emt 0:00:11]} Qh4 {[%emt 0:00:17]} 32. Rg3 {[%emt 0:00:07]} Qd8 {[%emt 0:02:45]} 33. Be3 {[%emt 0:03:16]} Bd7 {[%emt 0:00:29]} 34. Rg8 {[%emt 0:00:28]} Qh4 {[%emt 0:00:48]} 35. Bc2 {[%emt 0:02:15]} Rh8 {[%emt 0:00:27]} 36. Rg4 {[%emt 0:03:07]} Qh3 {[%emt 0:00:20]} 37. Rg3 {[%emt 0:00:11]} Qh5 {[%emt 0:00:08]} 38. Bd1 {[%emt 0:01:07]} Qh4 {[%emt 0:01:07]} 39. Bf3 {[%emt 0:01:30]} Qd8 {[%emt 0:00:55]} 40. Rg7 {[%emt 0:01:31]} Qa8 {[%emt 0:00:22]} 41. Qg5 {[%emt 0:03:21]} Qa1+ {[%emt 0:01:01]} 42. Bg1 {[%emt 0:00:56]} Rh7 {[%emt 0:00:00]} 43. Bh5 {[%emt 0:00:00]} Rxg7 {[%emt 0:00:00]} 44. Qxg7 {[%emt 0:00:00]} Qa2 {[%emt 0:00:00]} 45. Qxe5+ {[%emt 0:00:00]} Kd8 {[%emt 0:00:00]} 46. Qb8+ {[%emt 0:00:00]} Bc8 {[%emt 0:00:00]} 47. Qb6+ {[%emt 0:00:00]} Kd7 {[%emt 0:00:00]} 48. Bf3 {[%emt 0:00:00]} Qa3 {[%emt 0:00:00]} 49. Bg2 {[%emt 0:00:00]} Qc3 {[%emt 0:00:00]} 50. Qa7+ {[%emt 0:00:00]} Ke8 {[%emt 0:00:00]} 51. Qc7 {[%emt 0:00:00]} Bd7 {[%emt 0:00:00]} 52. Qb8+ {[%emt 0:00:00]} Ke7 {[%emt 0:00:00]} 53. Qd6+ {[%emt 0:00:00]} Ke8 {[%emt 0:00:00]} 54. f6 {[%emt 0:00:00]} Ng6 {[%emt 0:00:00]} 55. Qb8+ {[%emt 0:00:00]} Bc8 {[%emt 0:00:00]} 56. Qxc8# {[%emt 0:00:00]} 1-0

[Event "Slovakian ECo-C Extraliga 2024-25"]
[Site "Slovakia"]
[Date "2024.11.23"]
[Round "1.3"]
[White "Kusa, Jakub"]
[Black "Zwardon, Vojtech"]
[Result "1-0"]
[ECO "E04"]
[WhiteElo "2401"]
[BlackElo "2446"]
[Annotator "TA"]
[PlyCount "115"]
[EventDate "2024.09.12"]
[EventType "team-tourn"]
[EventCountry "SVK"]
[SourceTitle "playchess.com"]
[Source "ChessBase"]
[SourceQuality "1"]
[TimeControl "5400+30"]

{[%evp 19,114,4,19,10,17,5,62,47,35,50,116,114,101,104,122,97,110,115,108,133,109,120,156,122,299,299,324,262,279,283,326,289,314,318,336,329,344,338,333,353,326,317,350,273,269,261,258,226,278,229,286,281,297,300,279,246,370,393,438,435,495,497,448,432,529,456,789,767,1656,1200,1390,1228,922,639,1547,997,1370,1477,3182,4627,5439,5301,5439,5439,4072,704,5414,4312,29980,29981,29981,29982,29982,29982,29983,29984,29999]} 1. d4 {[%emt 0:00:06] Krasenkow,Michal} Nf6 {[%emt 0:06:31]} 2. Nf3 {[%emt 0:00:23]} e6 {[%emt 0:00:04]} 3. c4 {[%emt 0:00:19]} d5 {[%emt 0:00:02]} 4. g3 {[%emt 0:00:29]} dxc4 {[%emt 0:00:04]} 5. Bg2 {[%emt 0:00:24]} c6 {[%emt 0:00:02]} 6. Ne5 {[%emt 0:00:37]} Bb4+ {[%emt 0:00:02]} 7. Bd2 {[%emt 0:00:41] E04: Open Catalan: 5 Nf3.} Be7 {[%emt 0:00:02] 7...Be7 scores better than 7...Qxd4.} 8. e3 {[%emt 0:00:44]} b5 {[%emt 0:00:03]} 9. b3 {[%emt 0:00:16]} cxb3 {[%emt 0:00:59]} 10. axb3 {[%emt 0:00:10]} Bb7 {[%emt 0:01:23]} 11. Ba5 {[%emt 0:00:18]} Qc8 {[%emt 0:00:15]} 12. O-O {[%emt 0:00:39]} Na6 $146 {[%emt 0:06:15]} ({Better is} 12... Nbd7 $11) ({Predecessor:} 12... c5 13. Bxb7 Qxb7 14. dxc5 Nc6 15. Nxc6 Qxc6 16. b4 h5 17. Nd2 h4 18. Qf3 Nd5 {1-0 Gelfand,B (2655)-Bartel,M (2600) EU-ch 20th Skopje 2019 (6)}) 13. Qe2 {[%emt 0:13:15]} O-O {[%emt 0:00:48]} 14. Rc1 {[%emt 0:01:07]} c5 {[%emt 0:02:46]} ({Black should play} 14... Nd5 $14) 15. Qxb5 $16 {[%emt 0:03:12]} Bxg2 {[%emt 0:02:23]} 16. Kxg2 {[%emt 0:00:13]} Rb8 {[%emt 0:01:29]} 17. Nc6 $1 {[%emt 0:05:29]} Rxb5 {[%emt 0:00:02]} 18. Nxe7+ {[%emt 0:00:09]} Kh8 {[%emt 0:00:00]} 19. Nxc8 {[%emt 0:00:11]} Rxc8 {[%emt 0:00:03]} 20. Nd2 {[%emt 0:01:42]} Nd5 {[%emt 0:02:27]} 21. Ne4 {[%emt 0:03:27]} Rxb3 $2 {[%emt 0:10:24]} (21... Rc6 $16) 22. Nd6 $18 {[%emt 0:01:24]} (22. Nxc5 Nxc5 23. Rxc5 (23. dxc5 Ne7 $11) 23... Ra8 $14) (22. dxc5 Rc6 $16) 22... Rc6 {[%emt 0:01:04]} 23. Nxf7+ {[%emt 0:02:24]} Kg8 {[%emt 0:00:03]} 24. Nd8 {[%emt 0:02:06]} Rc8 {[%emt 0:00:16]} 25. Nxe6 {[%emt 0:02:09]} Rb2 {[%emt 0:00:03]} 26. e4 {[%emt 0:12:58]} (26. Nxc5 $6 Nxc5 27. Rxc5 (27. dxc5 Nxe3+ 28. Kg1 Nc2 $16) 27... Nxe3+ 28. Kf3 Rxc5 29. dxc5 Nf5 $18) (26. dxc5 Rc6 $18) 26... Ne3+ {[%emt 0:00:21]} 27. Kg1 {[%emt 0:00:29]} Nc2 {[%emt 0:00:10]} 28. Bc3 {[%emt 0:01:23]} Nxa1 {[%emt 0:00:17]} 29. Bxb2 {[%emt 0:00:55]} Nb3 {[%emt 0:00:03]} 30. Rc4 {[%emt 0:01:15]} Rb8 {[%emt 0:00:30]} 31. Bc3 {[%emt 0:05:28]} (31. dxc5 Nd2 32. Ra4 (32. Rc2 Nf3+ 33. Kf1 Kf7 $18) 32... Nxc5 33. Nxc5 Rxb2 34. Rxa7 Rb4) 31... cxd4 {[%emt 0:00:07]} 32. Nxd4 {[%emt 0:01:42]} Nbc5 {[%emt 0:01:20]} 33. Ne2 {[%emt 0:01:02]} g5 {[%emt 0:01:01]} 34. f3 {[%emt 0:01:43]} Rb7 {[%emt 0:05:34]} 35. Kf2 {[%emt 0:00:42]} Kf7 {[%emt 0:00:51]} 36. Ke3 {[%emt 0:00:44]} Nd7 {[%emt 0:03:08]} 37. Bd4 {[%emt 0:03:22]} Nb4 {[%emt 0:00:20]} (37... Rb3+ $142 38. Kf2 h6) 38. f4 $18 {[%emt 0:00:42]} gxf4+ {[%emt 0:00:07]} 39. gxf4 {[%emt 0:00:13]} a5 {[%emt 0:00:12]} 40. e5 {[%emt 0:01:51]} Nb6 {[%emt 0:00:45]} 41. Rc5 {[%emt 0:04:33]} a4 {[%emt 0:00:07]} 42. f5 {[%emt 0:00:36]} a3 {[%emt 0:00:41]} (42... N6d5+ $142 43. Ke4 a3 44. Rxd5 (44. e6+ Ke7 $18) 44... Nxd5) 43. Nf4 {[%emt 0:02:27]} a2 {[%emt 0:03:52]} 44. f6 {[%emt 0:01:52]} Ra7 {[%emt 0:00:57]} 45. e6+ {[%emt 0:00:24]} Kf8 {[%emt 0:02:22]} 46. Ba1 {[%emt 0:14:20]} Ra4 {[%emt 0:10:52]} 47. Rh5 {[%emt 0:07:16]} Nc2+ {[%emt 0:01:17]} 48. Kd2 {[%emt 0:01:36]} Rxf4 {[%emt 0:00:14]} 49. Kxc2 {[%emt 0:04:56]} Re4 {[%emt 0:01:29]} 50. e7+ {[%emt 0:00:00]} ({And not} 50. Rxh7 Rxe6 51. Rh8+ Kf7 $11) 50... Ke8 {[%emt 0:00:00]} 51. Rxh7 {[%emt 0:00:00]} Nd7 {[%emt 0:00:00]} 52. Kb3 {[%emt 0:00:00]} (52. Bc3 $142 Re2+ 53. Kb3) 52... Re2 {[%emt 0:00:00]} 53. h4 {[%emt 0:00:00]} Re6 {[%emt 0:00:00]} 54. Rh8+ {[%emt 0:00:00]} (54. Kxa2 Nxf6 55. Bxf6 Rxf6 $16) 54... Kf7 {[%emt 0:00:00]} 55. Kxa2 {[%emt 0:00:00]} Re2+ {[%emt 0:00:00]} 56. Kb3 {[%emt 0:00:00]} Nc5+ {[%emt 0:00:00]} 57. Kc4 {[%emt 0:00:00]} Ne6 {[%emt 0:00:00]} 58. e8=Q# {[%emt 0:00:00]} 1-0

[Event "Slovakian ECo-C Extraliga 2024-25"]
[Site "Slovakia"]
[Date "2024.11.23"]
[Round "1.3"]
[White "Turcan, Richard"]
[Black "Sipos, Istvan"]
[Result "1/2-1/2"]
[ECO "C07"]
[WhiteElo "2348"]
[BlackElo "2454"]
[Annotator "TA"]
[PlyCount "83"]
[EventDate "2024.09.12"]
[EventType "team-tourn"]
[EventCountry "SVK"]
[SourceTitle "playchess.com"]
[Source "ChessBase"]
[SourceQuality "1"]
[TimeControl "5400+30"]

{[%evp 14,83,22,16,25,24,21,8,19,0,8,12,30,-15,3,0,19,0,18,11,6,-29,-18,-29,-14,-22,-15,-16,-8,-6,-4,-15,-2,-10,0,-14,0,0,0,0,0,0,0,-7,54,5,52,57,53,52,49,50,45,35,63,72,64,80,73,0,0,0,0,0,0,0,0,0,89,91,92,0]} 1. e4 {[%emt 0:00:08]} e6 {[%emt 0:00:09]} 2. d4 {[%emt 0:00:07]} d5 {[%emt 0:00:04]} 3. Nd2 {[%emt 0:00:05]} c5 {[%emt 0:00:52]} 4. exd5 {[%emt 0:00:16]} Qxd5 {[%emt 0:00:09]} 5. Ngf3 {[%emt 0:00:09]} cxd4 {[%emt 0:00:06]} 6. Bc4 {[%emt 0:00:13]} Qd8 {[%emt 0:03:09]} 7. O-O {[%emt 0:02:04]} Nc6 {[%emt 0:00:56]} 8. Nb3 {[%emt 0:01:42]} a6 {[%emt 0:00:45]} 9. Nbxd4 {[%emt 0:12:32]} Nxd4 {[%emt 0:00:22]} 10. Nxd4 {[%emt 0:00:15]} Bd6 {[%emt 0:08:57] Prevents Bf4. The position is equal.} 11. Nf3 {[%emt 0:24:05]} Nf6 {[%emt 0:05:28]} 12. Qd4 {[%emt 0:05:01]} b5 {[%emt 0:13:08]} (12... Be7 {simplifies} 13. Qxd8+ Bxd8 14. a4 Bc7) 13. Be2 {[%emt 0:02:16]} (13. Rd1 $5) 13... Bb7 {[%emt 0:05:14]} 14. Rd1 {[%emt 0:01:27]} Be7 {[%emt 0:01:43]} 15. a4 {[%emt 0:08:03]} (15. Qxd8+ {simplifies} Rxd8 16. Rxd8+ Bxd8 17. c3) 15... Qxd4 {[%emt 0:03:44]} 16. Nxd4 {[%emt 0:00:43]} b4 {[%emt 0:00:11]} 17. Nb3 {[%emt 0:09:12]} Be4 {[%emt 0:03:18]} 18. Bd3 {[%emt 0:01:18]} Bxd3 {[%emt 0:13:39]} 19. cxd3 {[%emt 0:05:03]} Nd5 {[%emt 0:03:40]} 20. Be3 {[%emt 0:01:33]} Kd7 {[%emt 0:06:15]} 21. Bd4 {[%emt 0:03:51]} Rhg8 {[%emt 0:08:06]} 22. Rac1 {[%emt 0:01:32]} g5 {[%emt 0:00:20]} 23. Rc4 {[%emt 0:06:48]} Rgc8 {[%emt 0:02:02]} 24. Kf1 {[%emt 0:00:36]} Bd6 {[%emt 0:00:36]} 25. g3 {[%emt 0:02:00]} h5 {[%emt 0:06:00]} 26. Rdc1 {[%emt 0:01:19]} g4 {[%emt 0:01:28]} 27. Bc5 {[%emt 0:03:30] [#] Black must now prevent Bxd6.} Be5 {[%emt 0:03:14]} 28. d4 {[%emt 0:03:13]} Bd6 {[%emt 0:01:49]} (28... Bf6 $11) 29. Nd2 {[%emt 0:01:47]} (29. Bxd6 $14 {should be considered.} Rxc4 30. Rxc4 Kxd6 31. a5) 29... Rcb8 {[%emt 0:06:31]} (29... Bb8 $11) 30. Bxd6 $14 {[%emt 0:00:59]} Kxd6 {[%emt 0:00:02]} 31. Rc5 {[%emt 0:00:35]} b3 {[%emt 0:00:40]} 32. Nc4+ {[%emt 0:00:11]} Ke7 {[%emt 0:00:07]} 33. Ne3 {[%emt 0:01:26]} Rd8 {[%emt 0:01:46]} 34. Nxd5+ {[%emt 0:00:08]} Rxd5 {[%emt 0:00:13]} 35. Rxd5 {[%emt 0:01:11]} exd5 {[%emt 0:00:02][%mdl 4096] Endgame. [#] KR-KR} 36. Rc6 {[%emt 0:00:23]} ({Better is} 36. Rc7+ $1 $16 Kf6 37. Ke2) 36... Rb8 $11 {[%emt 0:00:26]} 37. Rxa6 {[%emt 0:00:38]} Rb4 {[%emt 0:00:03]} 38. a5 {[%emt 0:02:00]} Rxd4 {[%emt 0:00:06]} 39. Rb6 {[%emt 0:00:10]} Ra4 {[%emt 0:00:37]} 40. a6 {[%emt 0:00:43][%cal Of1e2]} Ra1+ {[%emt 0:02:15]} (40... Ra2 $11 {keeps the balance.}) 41. Ke2 $16 {[%emt 0:00:00][%cal Oe2d3]} Ra2 {[%emt 0:00:00]} 42. Rxb3 {[%emt 0:00:00] Weighted Error Value: White=0.10 (very precise) /Black=0.16 (very precise) .  Mistake:       	White=3     	Black=3      Inaccurate:     	White=2     	Black=1      OK:         	White=11    	Black=11     Best:        	White=2     	Black=2} ({White should play} 42. Kd3 $16 Rxb2 43. Kc3) 1/2-1/2

[Event "Slovakian ECo-C Extraliga 2024-25"]
[Site "Slovakia"]
[Date "2024.11.23"]
[Round "1.3"]
[White "Rohacek, Miroslav"]
[Black "Baidetskyi, Valentin"]
[Result "0-1"]
[ECO "C48"]
[WhiteElo "2245"]
[BlackElo "2512"]
[Annotator "TA"]
[PlyCount "90"]
[EventDate "2024.09.12"]
[EventType "team-tourn"]
[EventCountry "SVK"]
[SourceTitle "playchess.com"]
[Source "ChessBase"]
[SourceQuality "1"]
[TimeControl "5400+30"]

{[%evp 9,90,13,14,0,0,-16,0,-42,-16,-6,7,10,13,-28,0,0,4,0,25,16,35,35,22,0,0,19,34,30,86,41,60,0,-23,-29,-27,-24,0,-86,36,0,46,0,6,0,13,-164,-172,-175,-156,-166,-116,-118,-118,-114,-71,-92,-72,-248,-244,-243,-234,-229,-229,-269,-259,-260,-262,-310,-321,-321,-319,-534,-539,-742,-746,-739,-728,-834,-812,-1220,-1204,-29993,-29994]} 1. e4 {[%emt 0:01:48]} e5 {[%emt 0:00:12]} 2. Nf3 {[%emt 0:00:28]} Nc6 {[%emt 0:00:03]} 3. Nc3 {[%emt 0:01:35]} Nf6 {[%emt 0:00:01]} 4. Bb5 {[%emt 0:00:23]} Bd6 {[%emt 0:00:05]} 5. d3 {[%emt 0:00:15]} O-O {[%emt 0:00:28]} 6. h3 Re8 7. Bg5 {[%emt 0:04:55]} h6 {[%emt 0:01:50]} 8. Be3 {[%emt 0:04:04] The position is equal.} a6 {[%emt 0:01:04]} 9. Bxc6 dxc6 {[%emt 0:04:41]} 10. g4 {[%emt 0:04:01][%cal Bg2g4,Bg4g5][%mdl 32]} Nh7 {[%emt 0:01:39]} 11. Qd2 Qf6 {[%emt 0:08:29]} 12. Ke2 {[%emt 0:06:51]} Be7 {[%emt 0:31:04]} 13. Rag1 {[%emt 0:05:11]} Qd6 {[%emt 0:00:32]} 14. g5 {[%emt 0:10:56]} h5 {[%emt 0:05:26]} 15. Nh4 {[%emt 0:05:40]} g6 {[%emt 0:00:01]} 16. f4 {[%emt 0:00:13]} exf4 {[%emt 0:00:04]} 17. Bxf4 {[%emt 0:00:17]} Qd8 {[%emt 0:06:49]} 18. Kd1 {[%emt 0:02:26]} Be6 {[%emt 0:04:26]} (18... Bb4 $11 {keeps the balance.}) 19. Kc1 {[%emt 0:03:07][%cal Oh4f5]} Bb4 {[%emt 0:05:53]} 20. Nf3 {[%emt 0:02:19]} (20. Nf5 $14) 20... Bxa2 $11 {[%emt 0:01:58]} 21. Qh2 {[%emt 0:10:40][%cal Of4c7] Threatens to win with Bxc7!} Be6 {[%emt 0:02:21]} 22. Bxc7 {[%emt 0:00:58]} Qe7 {[%emt 0:00:26]} 23. Ne2 {[%emt 0:02:39]} (23. Nb1 $1 $11) 23... Qc5 {[%emt 0:05:12] Black is more active.} (23... a5 $1 $17 {White must now prevent ...a4.} 24. Be5 a4) 24. Ned4 {[%emt 0:05:19]} Nf8 {[%emt 0:02:39]} (24... a5 $11) 25. Kb1 {[%emt 0:03:42]} Qe7 {[%emt 0:01:58]} 26. c3 {[%emt 0:03:03]} Bc5 {[%emt 0:00:04] [#]} 27. Nxe6 $2 {[%emt 0:01:23]} Nxe6 $19 {[%emt 0:01:39]} 28. Be5 {[%emt 0:01:13]} Bxg1 {[%emt 0:00:08]} 29. Rxg1 {[%emt 0:00:12]} Qc5 {[%emt 0:00:56]} (29... a5 $19 30. Bd6 Qd8) 30. d4 {[%emt 0:02:11]} Qb5 {[%emt 0:00:19]} 31. Nd2 {[%emt 0:00:49]} Nf8 {[%emt 0:02:25]} 32. Rf1 {[%emt 0:03:16]} Nd7 {[%emt 0:09:25][%cal Rd7e5]} 33. c4 $2 {[%emt 0:04:55] [#]} (33. Bd6 $17) 33... Qb6 $1 {[%emt 0:00:08] Hoping for ...Nxe5.} 34. c5 {[%emt 0:01:03]} Qb5 {[%emt 0:01:19]} 35. Bd6 {[%emt 0:05:31]} Qd3+ {[%emt 0:00:06]} 36. Ka1 {[%emt 0:00:13]} Qxd4 {[%emt 0:00:40]} 37. Qf4 {[%emt 0:00:37] [#]} Rf8 {[%emt 0:01:25]} 38. Nf3 {[%emt 0:02:33]} (38. Bxf8 Rxf8) 38... Qa4+ {[%emt 0:00:17]} 39. Kb1 {[%emt 0:00:13]} Qc4 {[%emt 0:02:24]} 40. Nh4 $2 {[%emt 0:04:44]} (40. Nd2 {was worth a try.} Qd3+ 41. Ka1) 40... Rfe8 {[%emt 0:00:41]} 41. Re1 {[%emt 0:00:00]} Nxc5 {[%emt 0:00:00]} 42. Bxc5 {[%emt 0:00:00]} Qxc5 {[%emt 0:00:00]} 43. e5 {[%emt 0:00:00]} Rad8 {[%emt 0:00:00] And now ...Rd4 would win.} 44. e6 {[%emt 0:00:00]} Rxe6 {[%emt 0:00:00]} 45. Rxe6 {[%emt 0:00:00]} Rd1+ {[%emt 0:00:00] Weighted Error Value: White=0.79/Black=0.12 (very precise) .  Loses game:     	White=2     	---        Mistake:       	White=3     	Black=4      Inaccurate:     	White=6     	Black=3      OK:         	White=8     	Black=16     Best:        	White=4     	Black=2      Strong:       	---       	Black=1} 0-1